bitfinex-derivatives/quotes_ETHF0:USTF0_20240924
["timestamp","ask_amount","ask_price","bid_price","bid_amount"]
[1727165644206,0.37759,2648.5,2648.2,0.37763]
[1727165645021,0.37759,2648.5,2648.1,0.37764]
[1727165647017,0.37759,2648.5,2648.0,1.1607]
[1727165647221,0.37759,2648.5,2648.2,0.37763]
[1727165648024,0.3746,2648.6,2648.1,3.2078]
[1727165648321,0.37759,2648.5,2648.1,3.2078]
[1727165648519,0.3776,2648.4,2648.1,0.37764]
[1727165648713,3.2078,2648.4,2648.0,1.1607]
[1727165648913,3.2078,2648.4,2647.7,0.7604]
[1727165648914,0.37768,2647.9,2647.7,0.7604]
[1727165649619,1.36304855,2648.0,2647.7,0.7604]
[1727165649620,1.73454855,2648.0,2647.7,0.7604]
[1727165649811,0.37768,2647.9,2647.7,0.7604]
[1727165651325,1.35842855,2647.9,2647.7,0.7604]
[1727165651514,0.98074855,2647.9,2647.7,0.7604]
[1727165651718,2.61293791,2648.0,2647.7,0.7604]
[1727165651719,1.73454855,2648.0,2647.7,0.7604]
[1727165651921,2.11220855,2648.0,2647.7,0.7604]
[1727165652121,1.73454855,2648.0,2647.7,1.1381]
[1727165652326,1.73454855,2648.0,2647.7,0.7604]
[1727165652524,0.37768,2647.9,2647.7,0.7604]
[1727165652827,1.35842855,2647.9,2647.7,0.7604]
[1727165653025,0.98074855,2647.9,2647.7,0.7604]
[1727165653218,0.98074855,2647.8,2647.7,0.7604]
[1727165653825,1.48146791,2647.9,2647.7,0.7604]
[1727165653826,0.98074855,2647.9,2647.7,0.7604]
[1727165654324,0.98074855,2647.8,2647.7,0.7604]
[1727165655029,0.98074855,2647.9,2647.7,1.1381]
[1727165655230,0.98074855,2647.9,2647.7,0.7604]
[1727165655533,0.98074855,2647.9,2647.8,0.37769]
[1727165655714,0.98074855,2648.0,2647.9,0.37767]
[1727165656120,1.48146791,2648.0,2647.9,0.37767]
[1727165656533,1.48146791,2648.1,2647.9,0.37767]
[1727165656833,1.67039392,2648.1,2647.9,0.37767]
[1727165657331,0.98927238,2648.0,2647.7,1.7471913]
[1727165657526,0.98927238,2648.0,2647.9,0.37767]
[1727165659831,0.98927238,2648.0,2647.9,4.15447]
[1727165660928,0.98927238,2648.0,2647.9,0.37767]
[1727165661136,0.98927238,2648.0,2647.9,4.15447]
[1727165661936,0.98927238,2648.1,2648.0,0.37766]
[1727165662440,0.98927238,2648.2,2648.1,0.37764]
[1727165664334,0.98930765,2648.2,2648.1,0.37764]
[1727165664534,0.98930279,2648.2,2648.1,0.37764]
[1727165664735,1.48146791,2648.3,2648.1,0.37764]
[1727165665037,0.98931141,2648.2,2648.1,0.37764]
[1727165666327,0.98931141,2648.2,2648.1,0.96794524]
[1727165666527,0.98931141,2648.2,2648.1,0.37764]
[1727165667331,0.98931141,2648.2,2648.1,0.96794924]
[1727165668935,0.98931141,2648.2,2648.1,1.33374924]
[1727165670038,0.98931141,2648.2,2648.1,0.95610924]
[1727165670223,1.85909791,2648.2,2648.1,0.3658]
[1727165670429,2.23619791,2648.2,2648.1,0.3658]
[1727165670625,2.42510448,2648.2,2648.1,0.3658]
[1727165671038,0.94363657,2648.2,2648.1,0.3658]
[1727165671235,0.56601247,2648.2,2648.1,0.3658]
[1727165671430,2.2393548,2648.2,2648.1,0.3658]
[1727165672329,1.8617248,2648.2,2648.1,0.3658]
[1727165672733,2.05063663,2648.2,2648.1,0.3658]
[1727165673131,2.42826663,2648.2,2648.1,0.3658]
[1727165673440,0.94364183,2648.2,2647.9,2.5844513]
[1727165673637,0.98987049,2648.0,2647.9,1.97116]
[1727165673833,0.98987049,2648.0,2647.9,2.56151659]
[1727165674829,0.98987049,2648.0,2647.9,1.34151659]
[1727165675437,0.98987049,2648.0,2647.9,0.75116]
[1727165675837,0.98987049,2648.0,2647.9,1.3415165]
[1727165678637,2.23035574,2648.1,2647.9,1.3415165]
[1727165678838,1.48480574,2648.0,2647.9,0.75116]
[1727165679041,1.48480574,2648.0,2647.9,1.3415377]
[1727165679237,1.48480574,2648.0,2647.9,0.3735]
[1727165679451,1.48480574,2648.0,2647.9,0.96387794]
[1727165679836,1.86246574,2648.0,2647.9,0.96387794]
[1727165680036,0.37768,2647.9,2647.7,0.9867913]
[1727165680346,0.9900742,2647.8,2647.6,1.7621013]
[1727165680529,2.3119842,2647.8,2647.7,0.59043477]
[1727165680735,0.37771,2647.7,2647.3,4.1945913]
[1727165680934,0.9901329,2647.5,2647.4,1.955001]
[1727165681133,0.9901329,2647.5,2647.4,3.00335113]
[1727165681341,0.9901329,2647.6,2647.5,0.37773]
[1727165681536,1.48519935,2647.6,2647.5,0.9681997]
[1727165681744,1.48519935,2647.7,2647.5,0.9681997]
[1727165681931,1.6741451,2647.7,2647.5,0.37773]
[1727165682135,1.48519935,2647.6,2647.5,0.37773]
[1727165682343,1.48519935,2647.6,2647.3,4.4278]
[1727165682344,1.48519935,2647.7,2647.3,4.1945913]
[1727165682545,0.98984648,2647.5,2647.4,0.59046127]
[1727165683950,1.36757648,2647.5,2647.4,0.59046127]
[1727165684153,1.36757648,2647.5,2647.3,3.2078]
[1727165684639,1.36758648,2647.5,2647.3,3.2078]
[1727165685043,0.98984648,2647.4,2647.3,3.2078]
[1727165685246,1.36758648,2647.5,2647.3,3.2078]
[1727165686250,1.36758648,2647.5,2647.3,3.58556]
[1727165687139,0.98984648,2647.5,2647.3,4.4278]
[1727165687344,0.98984648,2647.5,2647.3,4.80555]
[1727165687345,1.36757648,2647.5,2647.3,4.80555]
[1727165687544,0.98984648,2647.5,2647.3,4.80555]
[1727165687849,1.36757648,2647.5,2647.3,4.80555]
[1727165690248,0.37773,2647.5,2647.3,4.80555]
[1727165690441,0.37773,2647.5,2647.3,4.4278]
[1727165690641,0.37773,2647.5,2647.3,4.80555]
[1727165691545,1.36757648,2647.5,2647.3,4.80555]
[1727165691748,0.37774,2647.4,2647.3,3.2078]
[1727165691956,1.36758648,2647.5,2647.3,3.58555]
[1727165692947,0.37774,2647.5,2647.3,3.58555]
[1727165693143,1.36758648,2647.5,2647.3,3.58555]
[1727165694150,1.36756648,2647.6,2647.4,0.37774]
[1727165694461,1.36756648,2647.6,2647.3,4.80555]
[1727165694462,0.37774,2647.5,2647.3,4.80555]
[1727165694946,0.37774,2647.5,2647.3,3.58555]
[1727165695147,1.36758648,2647.5,2647.3,3.58555]
[1727165695752,0.74224,2647.4,2647.3,3.58555]
[1727165695948,0.74224,2647.4,2647.3,3.2078]
[1727165696450,1.48844,2647.4,2647.3,3.2078]
[1727165696651,1.1107,2647.4,2647.3,3.58556]
[1727165696850,1.1107,2647.4,2647.3,0.37776]
[1727165697455,1.1107,2647.4,2647.2,0.01]
[1727165697456,1.1107,2647.4,2647.2,0.38776]
[1727165697651,1.1107,2647.4,2647.3,0.37776]
[1727165698354,1.1107,2647.4,2647.2,0.38776]
[1727165698655,1.1107,2647.4,2647.3,0.37776]
[1727165698858,1.1107,2647.4,2647.3,0.75586]
[1727165698859,0.7433,2647.4,2647.3,0.75586]
[1727165699451,1.12104,2647.4,2647.3,0.3781]
[1727165700455,0.7433,2647.4,2647.3,0.3781]
[1727165700659,0.7433,2647.4,2647.3,0.75586]
[1727165700961,0.98984648,2647.7,2647.5,0.37773]
[1727165701151,0.37771,2647.6,2647.4,0.75574]
[1727165701964,0.37771,2647.7,2647.4,0.75574]
[1727165702154,0.37772,2647.6,2647.4,0.75574]
[1727165702354,0.98984648,2647.7,2647.4,0.378]
[1727165702549,0.98984648,2647.7,2647.4,0.75573]
[1727165702550,0.37771,2647.7,2647.4,0.75573]
[1727165702751,0.98984648,2647.8,2647.5,0.75373]
[1727165702954,0.37771,2647.7,2647.5,0.376]
[1727165703365,1.36753648,2647.8,2647.5,0.75371]
[1727165703561,1.36753648,2647.8,2647.5,1.97372]
[1727165703866,0.37769,2647.8,2647.5,0.75372]
[1727165704564,1.36753648,2647.8,2647.5,0.75373]
[1727165705862,0.98984648,2647.8,2647.5,0.75373]
[1727165706058,0.98984648,2647.8,2647.7,1.5977]
[1727165706263,0.98984648,2648.0,2647.8,0.37769]
[1727165706455,0.98984648,2648.0,2647.9,0.382]
[1727165706649,1.36749648,2648.1,2647.9,0.382]
[1727165707357,1.36748648,2648.1,2647.9,0.382]
[1727165707554,0.37766,2648.0,2647.9,0.382]
[1727165707758,1.36749648,2648.1,2647.9,0.382]
[1727165708559,0.98984648,2648.0,2647.9,0.382]
[1727165709469,1.36750648,2648.0,2647.9,0.382]
[1727165709769,1.36749648,2648.1,2647.9,0.382]
[1727165709958,0.98984648,2648.0,2647.9,0.382]
[1727165711260,2.20984648,2648.0,2647.5,1.3627913]
[1727165711466,0.3777,2647.7,2647.6,0.391]
[1727165711765,0.37776,2647.3,2647.2,0.01]
[1727165712178,2.58654972,2647.3,2647.2,0.01]
[1727165712472,2.58654972,2647.3,2646.7,7.0798933]
[1727165712473,0.37784,2646.7,2646.4,0.088]
[1727165712675,2.58682203,2646.7,2646.4,0.391]
[1727165712966,1.36684203,2646.6,2646.4,0.391]
[1727165713167,0.98898203,2646.6,2646.4,0.391]
[1727165713471,2.70347304,2646.7,2646.4,0.391]
[1727165713472,2.58682203,2646.7,2646.4,0.391]
[1727165713770,0.98898203,2646.7,2646.4,0.391]
[1727165713960,0.98898203,2646.7,2646.5,1.22]
[1727165714158,0.98898203,2646.8,2646.5,1.22]
[1727165714377,4.19678203,2646.9,2646.4,3.41887]
[1727165714555,4.19678203,2646.9,2646.5,0.37786]
[1727165714761,4.19678203,2646.9,2646.5,0.37787]
[1727165715170,2.50309203,2647.0,2646.5,0.37787]
[1727165715769,0.37782,2646.9,2646.5,0.37787]
[1727165716165,2.12528203,2647.0,2646.4,3.41888]
[1727165716474,1.36681203,2646.9,2646.4,3.41888]
[1727165716666,1.36681203,2646.9,2646.5,0.37787]
[1727165717069,0.98898203,2646.9,2646.6,0.37786]
[1727165717269,0.37781,2646.9,2646.5,0.37786]
[1727165718272,0.37781,2646.9,2646.5,0.37787]
[1727165718867,1.73048203,2647.0,2646.4,0.391]
[1727165719067,0.37787,2646.6,2646.4,0.391]
[1727165719274,0.3942,2646.5,2646.4,0.391]
[1727165719471,1.16337,2646.5,2646.4,0.391]
[1727165719682,0.7855,2646.5,2646.4,0.391]
[1727165721168,0.3942,2646.5,2646.4,0.391]
[1727165722565,0.77207,2646.5,2646.4,0.391]
[1727165722772,0.3942,2646.5,2646.4,0.391]
[1727165727385,0.3942,2646.5,2646.2,0.77601]
[1727165727572,0.3942,2646.5,2645.9,3.2078]
[1727165727573,0.37793,2646.1,2646.0,0.3856]
[1727165727768,0.37793,2646.1,2645.4,4.1945913]
[1727165727769,0.94486,2646.0,2645.4,4.1945913]
[1727165727971,0.37798,2645.8,2645.5,0.76361]
[1727165728176,3.40676,2645.9,2645.6,0.378]
[1727165728579,3.40676,2645.9,2645.5,0.3856]
[1727165728580,0.37798,2645.8,2645.5,0.76361]
[1727165728884,3.40677,2645.9,2645.6,0.378]
[1727165729374,3.40677,2645.9,2645.5,0.76361]
[1727165729375,0.37797,2645.8,2645.5,0.76361]
[1727165730178,0.37799,2645.7,2645.5,0.3856]
[1727165730369,2.65,2645.7,2645.2,0.37805]
[1727165730677,0.37801,2645.6,2645.2,0.37805]
[1727165730877,0.37802,2645.5,2645.2,0.37805]
[1727165731080,0.37802,2645.5,2645.1,0.77637]
[1727165731482,0.37803,2645.4,2645.1,0.3983]
[1727165731870,0.3837,2645.3,2645.1,0.3983]
[1727165733083,4.1645,2645.3,2644.8,0.3931]
[1727165733386,3.41175,2645.3,2644.9,0.3781]
[1727165733589,0.37806,2645.2,2644.8,0.7631]
[1727165733886,0.37807,2645.2,2644.8,0.76311]
[1727165734082,3.0337,2645.3,2644.8,0.385]
[1727165734279,3.0337,2645.3,2644.8,0.76311]
[1727165734584,0.37806,2645.2,2644.8,0.76311]
[1727165735576,0.76175,2645.3,2644.9,0.3781]
[1727165735778,0.37806,2645.2,2644.9,0.3781]
[1727165735983,0.37806,2645.2,2644.8,0.76311]
[1727165736185,0.76175,2645.3,2644.9,0.37809]
[1727165736485,0.76175,2645.3,2645.0,0.37808]
[1727165736486,0.3837,2645.3,2645.0,0.37808]
[1727165736676,0.76174,2645.3,2644.9,0.37809]
[1727165737185,0.76174,2645.3,2644.8,0.385]
[1727165737186,0.76174,2645.3,2645.0,0.37809]
[1727165737372,0.76174,2645.3,2644.9,0.37809]
[1727165737778,0.76174,2645.3,2645.0,0.37808]
[1727165737779,0.3837,2645.3,2645.0,0.37808]
[1727165737973,0.3837,2645.3,2645.1,0.37807]
[1727165738181,0.3837,2645.3,2644.8,0.385]
[1727165738377,0.3837,2645.3,2645.1,0.37807]
[1727165738581,0.3837,2645.3,2645.1,23.07807]
[1727165739684,6.23582,2645.5,2645.2,0.37806]
[1727165740186,6.23582,2645.5,2645.3,0.37804]
[1727165740187,3.2078,2645.5,2645.3,0.37804]
[1727165740686,3.2078,2645.5,2645.1,22.7]
[1727165740886,6.23582,2645.5,2645.1,23.07806]
[1727165741087,0.37804,2645.4,2645.1,23.07806]
[1727165741480,5.8578,2645.5,2645.1,22.7]
[1727165741481,2.65,2645.3,2645.1,22.7]
[1727165741677,0.37806,2645.2,2645.1,22.7]
[1727165742083,0.74756,2645.2,2645.1,22.7]
[1727165742576,0.74756,2645.2,2644.8,0.76311]
[1727165742783,0.74756,2645.2,2644.9,0.3781]
[1727165742784,0.3695,2645.2,2644.9,0.3781]
[1727165743180,0.3695,2645.2,2645.0,22.7]
[1727165743686,0.74756,2645.2,2644.8,0.76311]
[1727165744188,0.3695,2645.2,2644.9,23.0781]
[1727165744392,2.65,2645.3,2645.0,0.37808]
[1727165744886,2.65,2645.3,2644.9,22.7]
[1727165745085,6.60752,2645.5,2644.9,22.7]
[1727165745274,3.5795,2645.5,2644.9,25.9078]
[1727165745476,3.2078,2645.5,2645.3,0.37804]
[1727165745682,3.2078,2645.5,2645.2,0.37805]
[1727165745990,3.2078,2645.5,2645.3,0.37804]
[1727165746191,3.2078,2645.5,2645.4,0.37803]
[1727165746586,3.2078,2645.5,2645.3,0.37803]
[1727165747882,3.2078,2645.5,2645.4,0.37803]
[1727165748183,2.65,2645.7,2645.0,3.96689]
[1727165748388,2.65,2645.7,2645.4,0.37802]
[1727165748579,2.65,2645.7,2645.5,1.12271]
[1727165748780,4.45997,2645.8,2645.5,0.7447]
[1727165748981,4.45997,2645.8,2645.5,1.12271]
[1727165749382,3.0163,2645.9,2645.5,1.12271]
[1727165749383,0.37799,2645.7,2645.5,0.7447]
[1727165749786,3.02799,2645.7,2645.5,0.7447]
[1727165750188,2.65,2645.7,2645.5,0.7447]
[1727165752194,3.02798,2645.8,2645.5,0.7447]
[1727165753095,3.02798,2645.8,2645.5,1.12271]
[1727165753096,2.65,2645.8,2645.5,1.12271]
[1727165753891,2.65,2645.6,2645.1,0.1066]
[1727165754083,2.65,2645.6,2645.3,0.37803]
[1727165754294,3.02801,2645.6,2645.2,1.16195]
[1727165754505,0.37802,2645.5,2645.2,1.16195]
[1727165754788,0.3755,2645.4,2645.2,1.16195]
[1727165755090,0.3755,2645.4,2645.2,0.3944]
[1727165755091,3.40353,2645.4,2645.2,0.3944]
[1727165756391,3.0255,2645.4,2645.2,0.3944]
[1727165757789,3.0255,2645.4,2645.2,0.77245]
[1727165757990,3.40353,2645.4,2645.2,0.3944]
[1727165758185,3.40353,2645.4,2645.2,0.77246]
[1727165758396,0.3755,2645.4,2645.2,0.77245]
[1727165758700,0.37801,2645.6,2645.2,0.3944]
[1727165758901,0.7401,2645.7,2645.4,0.37802]
[1727165759799,0.378,2645.6,2645.4,0.37802]
[1727165760000,0.378,2645.6,2645.3,0.77463]
[1727165760596,0.378,2645.6,2645.4,0.37803]
[1727165761001,0.378,2645.6,2645.3,0.77463]
[1727165761195,0.378,2645.6,2645.2,0.77245]
[1727165761196,0.37802,2645.5,2645.2,0.77245]
[1727165761396,0.37802,2645.5,2645.3,0.37804]
[1727165761698,3.02801,2645.6,2645.4,0.37803]
[1727165762087,3.02801,2645.6,2645.1,0.48467]
[1727165762088,0.37804,2645.4,2645.1,0.48467]
[1727165762295,0.76925,2645.3,2645.1,0.479]
[1727165762600,0.76925,2645.3,2645.1,0.3724]
[1727165762790,1.14935,2645.3,2645.1,0.3724]
[1727165762990,0.7713,2645.3,2645.1,0.3724]
[1727165763189,1.54525,2645.3,2645.1,0.3724]
[1727165764093,0.37806,2645.2,2645.1,0.3724]
[1727165764300,1.1672,2645.3,2645.1,0.3724]
[1727165764301,1.54525,2645.3,2645.1,0.3724]
[1727165764800,0.37806,2645.2,2645.1,0.3724]
[1727165765696,1.1672,2645.3,2645.1,0.3724]
[1727165765898,1.54525,2645.3,2645.1,0.3724]
[1727165766601,0.37806,2645.2,2645.1,0.3724]
[1727165766798,0.37809,2645.0,2644.7,0.37812]
[1727165767004,2.65,2645.0,2644.7,0.74512]
[1727165767207,4.01704203,2645.2,2644.8,0.37811]
[1727165767497,0.37807,2645.1,2644.8,0.37811]
[1727165769198,3.63898203,2645.2,2644.8,0.3781]
[1727165769514,2.15618203,2645.3,2645.0,0.37808]
[1727165769804,2.53423203,2645.3,2644.9,0.37809]
[1727165769992,0.37806,2645.2,2644.9,0.37809]
[1727165770197,1.36704203,2645.2,2644.9,0.37809]
[1727165770798,2.15618203,2645.3,2644.7,0.367]
[1727165771099,0.98898203,2645.2,2644.7,0.367]
[1727165771301,1.36704203,2645.2,2644.7,0.367]
[1727165771602,1.36704203,2645.2,2644.9,0.37809]
[1727165772008,1.36704203,2645.2,2645.0,0.37808]
[1727165772199,0.98943311,2645.2,2645.1,0.73977]
[1727165772611,1.38063311,2645.3,2645.2,0.37806]
[1727165772801,0.37806,2645.2,2645.1,0.3617]
[1727165772995,1.84947304,2645.2,2644.9,0.37809]
[1727165773203,0.98950372,2645.0,2644.9,0.73979]
[1727165773503,0.98950372,2645.0,2644.9,0.7398]
[1727165773701,1.36758372,2645.1,2644.9,0.7398]
[1727165773897,0.98950372,2645.0,2644.9,0.7398]
[1727165776205,1.48347304,2645.1,2644.9,0.3617]
[1727165776413,1.48347304,2645.0,2644.9,0.3617]
[1727165776598,1.48347304,2645.0,2644.9,0.7398]
[1727165777206,2.24765304,2645.1,2644.9,0.7398]
[1727165778419,0.99066722,2645.0,2644.9,0.7398]
[1727165778603,0.37809,2645.0,2644.9,0.3617]
[1727165778809,1.48347304,2645.0,2644.9,0.7398]
[1727165779406,1.48347304,2645.0,2644.9,0.3617]
[1727165780113,1.48347304,2645.0,2644.9,0.7398]
[1727165781809,1.48347304,2645.0,2644.9,0.8464]
[1727165782112,1.48347304,2645.0,2644.9,0.4683]
[1727165782315,1.86156304,2645.0,2644.9,0.4683]
[1727165782509,2.05070834,2645.0,2644.9,0.4683]
[1727165782704,0.5672353,2645.0,2644.9,0.4683]
[1727165783420,0.56723658,2645.0,2644.9,0.4683]
[1727165783814,0.56723658,2645.0,2644.9,0.1066]
[1727165784216,3.77503658,2645.0,2644.9,0.1066]
[1727165784812,0.56723658,2645.0,2644.9,0.1066]
[1727165788118,6.69822365,2645.0,2644.9,0.1066]
[1727165788717,8.50105959,2645.0,2644.9,0.1066]
[1727165789027,4.72025959,2645.0,2644.9,0.1066]
[1727165789618,0.94529,2644.8,2644.3,0.37818]
[1727165789814,1.36842736,2644.6,2644.5,0.3619]
[1727165790009,0.99027736,2644.6,2644.5,0.3619]
[1727165790209,1.36841736,2644.6,2644.5,0.3619]
[1727165793213,1.86355605,2644.6,2644.5,0.3619]
[1727165794119,0.98975281,2644.6,2644.5,0.74006]
[1727165794315,0.98975281,2644.6,2644.5,0.3619]
[1727165795419,1.36789281,2644.6,2644.5,0.3619]
[1727165795824,0.98975281,2644.6,2644.5,0.3619]
[1727165796714,1.36789281,2644.6,2644.5,0.3619]
[1727165797823,1.36789281,2644.6,2644.5,0.74006]
[1727165797824,0.98975281,2644.6,2644.5,0.74006]
[1727165798419,0.98975281,2644.7,2644.6,0.37814]
[1727165799219,1.36785281,2644.9,2644.7,0.37813]
[1727165800117,0.37811,2644.8,2644.6,0.37814]
[1727165800323,0.98975281,2644.8,2644.7,0.37813]
[1727165802525,3.09352605,2644.9,2644.7,0.37813]
[1727165803124,1.86353605,2644.8,2644.6,0.37814]
[1727165803322,0.99014836,2644.7,2644.6,0.37814]
[1727165803729,0.99014836,2644.7,2644.5,0.3619]
[1727165804034,0.99014836,2644.7,2644.6,0.37814]
[1727165805233,0.99014836,2644.8,2644.7,0.37813]
[1727165805429,1.48541605,2644.9,2644.8,0.37811]
[1727165805629,1.67456648,2644.9,2644.8,0.37811]
[1727165805828,1.67456648,2644.9,2644.5,0.3619]
[1727165806031,0.99043413,2644.8,2644.7,0.37812]
[1727165806631,1.48541605,2644.9,2644.8,0.37811]
[1727165806935,0.18914943,2644.9,2644.8,0.37811]
[1727165807325,1.67485376,2644.9,2644.8,0.37811]
[1727165807525,0.18915075,2644.9,2644.8,0.37811]
[1727165807934,0.18915075,2644.9,2644.8,4.15891]
[1727165808137,0.99056354,2645.0,2644.9,0.3781]
[1727165808329,1.48591116,2645.1,2645.0,0.37809]
[1727165808528,1.67504104,2645.1,2645.0,0.37809]
[1727165810037,1.48591116,2645.1,2645.0,0.37809]
[1727165810839,1.48591116,2645.2,2645.1,0.37807]
[1727165811133,0.99069897,2645.3,2645.2,0.37806]
[1727165811339,0.99069897,2645.4,2645.3,0.37804]
[1727165811546,0.99069897,2645.4,2645.3,2.92415]
[1727165811733,0.99069897,2645.6,2645.5,0.37801]
[1727165812036,1.48591116,2645.7,2645.6,0.378]
[1727165812037,0.99069897,2645.7,2645.6,0.378]
[1727165813330,2.24488116,2645.9,2645.5,1.60801]
[1727165813331,0.99069897,2645.8,2645.5,1.60801]
[1727165813528,0.99069897,2645.8,2645.6,0.37799]
[1727165813728,0.99069897,2645.7,2645.6,0.37799]
[1727165814241,0.99069897,2645.7,2645.6,0.378]
[1727165814545,0.99069897,2645.7,2645.4,26.2799]
[1727165814546,1.36868897,2645.7,2645.4,3.95792]
[1727165814753,0.3732,2645.6,2645.4,3.95792]
[1727165816445,0.3732,2645.6,2645.4,3.5799]
[1727165816640,0.3732,2645.6,2645.4,3.95792]
[1727165817555,0.7512,2645.6,2645.4,3.5799]
[1727165817753,0.3732,2645.6,2645.4,3.2078]
[1727165818154,0.75121,2645.6,2645.4,3.2078]
[1727165818655,1.74190897,2645.6,2645.4,3.2078]
[1727165819455,0.37801,2645.5,2645.1,0.37807]
[1727165819652,0.37805,2645.3,2645.1,0.3906]
[1727165819861,4.03759897,2645.4,2645.0,0.37808]
[1727165820160,1.36169897,2645.3,2645.0,0.37807]
[1727165820552,1.73974897,2645.3,2645.0,0.37808]
[1727165821755,1.36169897,2645.3,2644.9,0.3906]
[1727165821962,0.99069897,2645.4,2645.2,0.37806]
[1727165822153,0.99069897,2645.5,2645.3,0.3852]
[1727165822357,1.36389897,2645.6,2645.3,0.3852]
[1727165822662,1.48591116,2645.8,2645.3,0.3852]
[1727165822663,0.99069897,2645.9,2645.7,0.37799]
[1727165822967,2.54734897,2646.0,2645.7,0.37799]
[1727165823461,2.16939897,2646.0,2645.9,0.37796]
[1727165824267,0.39,2646.0,2645.9,0.37796]
[1727165824456,0.99069897,2646.2,2645.7,0.379]
[1727165824657,0.3893,2646.2,2645.7,0.379]
[1727165824960,0.3893,2646.2,2646.1,0.37793]
[1727165825464,0.3893,2646.2,2646.0,0.37793]
[1727165826165,0.76722,2646.2,2646.0,0.37793]
[1727165826571,3.0393,2646.2,2645.7,0.379]
[1727165826768,0.37796,2645.9,2645.7,0.75698]
[1727165827062,0.39,2645.8,2645.7,0.379]
[1727165827272,0.7833,2645.8,2645.7,0.75699]
[1727165828467,4.57643897,2646.1,2645.7,0.75699]
[1727165828676,0.3893,2646.2,2646.1,0.37793]
[1727165828968,0.3893,2646.2,2646.0,0.37793]
[1727165829361,0.3893,2646.2,2646.1,0.37793]
[1727165829957,0.3893,2646.2,2646.0,0.37793]
[1727165830159,0.3893,2646.2,2646.1,0.37793]
[1727165831365,0.38,2646.5,2646.1,3.0135]
[1727165831960,0.7492,2646.6,2646.4,0.37789]
[1727165832160,0.7492,2646.6,2646.5,0.37787]
[1727165832963,0.7492,2646.6,2646.3,2.65]
[1727165832964,0.7492,2646.6,2646.4,0.37788]
[1727165833169,1.12706,2646.6,2646.3,0.3779]
[1727165833469,1.12706,2646.6,2646.4,0.37788]
[1727165833858,1.12706,2646.6,2646.1,0.3635]
[1727165834059,1.12706,2646.6,2646.4,0.37788]
[1727165834472,0.7492,2646.6,2646.4,0.37788]
[1727165834873,1.12706,2646.6,2646.4,0.37788]
[1727165835074,1.12706,2646.6,2646.1,0.3635]
[1727165835273,1.12706,2646.6,2646.4,0.37788]
[1727165835670,1.12706,2646.6,2646.3,0.37789]
[1727165835873,0.3779,2646.3,2646.1,0.74142]
[1727165836172,1.69387,2646.6,2646.1,0.74142]
[1727165836381,1.69387,2646.6,2646.1,0.3635]
[1727165836566,0.37791,2646.2,2646.1,0.3635]
[1727165836768,0.37791,2646.3,2646.1,0.74142]
[1727165836965,0.3779,2646.3,2646.1,0.74142]
[1727165837163,0.3779,2646.3,2646.1,0.3635]
[1727165837872,1.34364,2646.4,2645.7,0.3999]
[1727165838176,0.94479,2646.2,2645.7,0.3861]
[1727165838372,0.37795,2646.0,2645.8,0.37797]
[1727165839873,0.3898,2646.1,2646.0,0.37794]
[1727165841171,0.3898,2646.1,2645.9,2.65]
[1727165841172,1.151,2646.4,2646.2,0.37791]
[1727165841776,1.151,2646.4,2646.0,0.3927]
[1727165841777,0.3674,2646.6,2646.1,0.7663]
[1727165842076,0.3674,2646.6,2646.2,5.8578]
[1727165842477,0.3674,2646.6,2646.5,0.37787]
[1727165843580,0.3674,2646.6,2646.2,5.8578]
[1727165844080,0.3674,2646.6,2646.5,0.37787]
[1727165844273,0.3674,2646.6,2646.2,5.8578]
[1727165844576,0.3674,2646.6,2646.4,0.37787]
[1727165844781,0.3674,2646.6,2646.5,0.37787]
[1727165845180,3.2078,2646.7,2646.6,0.37786]
[1727165845873,0.3986,2646.9,2646.8,0.37783]
[1727165847476,0.77641,2646.9,2646.8,0.37783]
[1727165849581,0.77641,2646.9,2646.6,3.0392]
[1727165849582,0.77641,2646.9,2646.7,0.37783]
[1727165849771,0.77642,2646.9,2646.7,0.37783]
[1727165851084,0.77642,2646.9,2646.8,0.37783]
[1727165851085,0.37782,2646.9,2646.8,0.37783]
[1727165851285,0.77272,2646.9,2646.8,0.37783]
[1727165852077,0.37783,2646.8,2646.7,0.37784]
[1727165852278,0.77272,2646.9,2646.7,0.37784]
[1727165853588,0.3949,2646.9,2646.8,0.37783]
[1727165854483,0.77271,2646.9,2646.8,0.37783]
[1727165856992,0.3949,2646.9,2646.8,0.37783]
[1727165857285,0.37782,2646.9,2646.8,0.37782]
[1727165858692,2.67284897,2647.2,2646.6,3.0392]
[1727165858883,0.37784,2646.8,2646.7,0.37784]
[1727165860986,0.37782,2646.9,2646.8,0.37783]
[1727165861185,0.37783,2646.8,2646.7,0.37784]
[1727165862296,0.37784,2646.8,2646.7,0.37784]
[1727165862488,5.14301897,2647.0,2646.6,3.0392]
[1727165862789,0.37784,2646.7,2646.6,2.65]
[1727165863098,0.37786,2646.6,2646.5,0.7427]
[1727165864193,0.37786,2646.6,2646.5,4.5211]
[1727165864503,0.37786,2646.6,2646.5,4.89897]
[1727165864993,0.37786,2646.6,2646.5,1.12057]
[1727165866893,0.37786,2646.6,2646.5,0.7427]
[1727165867290,0.37786,2646.6,2646.5,1.12057]
[1727165867695,0.37786,2646.6,2646.5,0.7427]
[1727165867992,0.37786,2646.6,2646.5,1.12057]
[1727165868196,0.3779,2646.4,2646.3,0.3779]
[1727165871898,0.37789,2646.4,2646.2,0.37791]
[1727165872098,0.37791,2646.3,2646.2,0.77191]
[1727165872801,1.32267,2646.3,2646.2,0.394]
[1727165872997,0.37791,2646.3,2646.2,0.394]
[1727165874297,0.99069897,2646.3,2646.2,0.77191]
[1727165874595,0.99069897,2646.4,2646.3,0.3779]
[1727165875099,1.36857897,2646.5,2646.4,0.37789]